bitfinex-derivatives/quotes_SOLF0:USTF0_20241206
["timestamp","ask_amount","ask_price","bid_price","bid_amount"]
[1733464530233,2.0885,239.26,239.2,6.77614951]
[1733464530437,2.0886,239.25,239.2,6.77614951]
[1733464534147,2.0888,239.23,239.2,6.77614951]
[1733464534740,2.12,239.29,239.2,6.77614951]
[1733464536841,2.0888,239.24,239.2,6.77614951]
[1733464537442,2.12,239.29,239.2,6.77614951]
[1733464537637,2.0888,239.23,239.2,6.77614951]
[1733464538241,2.12,239.29,239.2,6.77614951]
[1733464538440,10.36633878,239.28,239.2,6.77614951]
[1733464538645,2.12,239.29,239.2,6.77614951]
[1733464538945,10.36640653,239.28,239.2,6.77614951]
[1733464539249,2.0888,239.23,239.2,6.77614951]
[1733464539445,2.12,239.29,239.2,5.42824951]
[1733464539646,10.36989126,239.28,239.2,5.42824951]
[1733464539843,10.36989126,239.27,239.16,13.29460148]
[1733464540049,2.12,239.29,239.16,13.29460148]
[1733464540050,2.0889,239.22,239.16,13.29460148]
[1733464540348,2.12,239.29,239.17,2.0893]
[1733464540649,10.37315123,239.28,239.17,6.31175768]
[1733464540849,10.37315123,239.27,239.17,6.31175768]
[1733464541047,2.12,239.29,239.17,6.31175768]
[1733464541248,10.37384615,239.28,239.17,4.22245768]
[1733464541446,2.0889,239.22,239.16,13.29460148]
[1733464542047,2.0889,239.22,239.19,5.79903529]
[1733464542248,0.30015,239.4,239.21,5.79903529]
[1733464542449,5.79903529,239.33,239.24,5.79903529]
[1733464542651,10.38675248,239.32,239.24,5.79903529]
[1733464542846,2.0884,239.28,239.24,5.79903529]
[1733464543251,2.0884,239.28,239.24,10.00135966]
[1733464543452,7.91903529,239.33,239.24,10.00135966]
[1733464543648,10.39207754,239.32,239.24,10.00135966]
[1733464543846,10.39207754,239.31,239.24,10.00135966]
[1733464544042,2.0884,239.28,239.24,10.00135966]
[1733464545747,2.0882,239.31,239.24,4.20232437]
[1733464546048,10.38703751,239.3,239.22,5.79903529]
[1733464546352,5.79903529,239.31,239.22,4.23154835]
[1733464546353,10.38703751,239.29,239.22,4.23154835]
[1733464546650,5.79903529,239.31,239.22,5.79903529]
[1733464546850,10.3865128,239.3,239.22,9.9030644]
[1733464547052,10.3865128,239.29,239.22,9.9030644]
[1733464547255,2.0883,239.29,239.22,9.9030644]
[1733464547552,5.79903529,239.31,239.22,9.9030644]
[1733464547752,2.0884,239.28,239.22,11.9919644]
[1733464547942,5.79903529,239.31,239.22,9.9030644]
[1733464548148,10.38717492,239.3,239.22,9.9030644]
[1733464548349,2.0884,239.28,239.22,9.9030644]
[1733464549354,2.0885,239.27,239.22,11.9919644]
[1733464550957,5.79903529,239.31,239.22,9.9030644]
[1733464551159,2.0885,239.26,239.22,9.9030644]
[1733464551950,2.0885,239.26,239.22,4.10402911]
[1733464552156,2.0885,239.26,239.21,2.12]
[1733464552357,2.0886,239.25,239.22,4.25788044]
[1733464552552,5.79903529,239.29,239.22,5.79903529]
[1733464552858,5.79903529,239.29,239.23,4.09734769]
[1733464553064,2.0883,239.29,239.23,6.18614769]
[1733464553458,2.0882,239.31,239.25,2.0886]
[1733464553658,10.38988704,239.3,239.25,2.0886]
[1733464553855,2.12,239.33,239.25,2.0886]
[1733464554156,10.39003137,239.32,239.25,2.0886]
[1733464554354,10.39003137,239.31,239.25,2.0886]
[1733464554559,10.39003137,239.3,239.25,2.0886]
[1733464554758,2.0882,239.3,239.26,4.13361328]
[1733464557361,2.0882,239.3,239.26,5.37091328]
[1733464559961,10.38212467,239.29,239.26,5.37091328]
[1733464560152,2.0882,239.3,239.26,5.37091328]
[1733464560351,5.79903529,239.31,239.26,1.2373]
[1733464560562,10.38156298,239.3,239.26,1.2373]
[1733464560757,10.38156298,239.29,239.26,1.2373]
[1733464560959,2.0883,239.3,239.26,1.2373]
[1733464561155,10.38161401,239.29,239.26,1.2373]
[1733464561359,5.79903529,239.31,239.25,4.24188652]
[1733464561555,10.38220031,239.3,239.15,2.5458]
[1733464561757,2.089,239.22,239.15,2.5458]
[1733464562065,2.089,239.22,239.17,5.79903529]
[1733464562565,2.089,239.22,239.16,2.14]
[1733464562755,2.14,239.28,239.17,5.79903529]
[1733464562961,5.79903529,239.26,239.17,5.79903529]
[1733464563263,10.38018813,239.25,239.17,5.79903529]
[1733464563459,5.79903529,239.26,239.17,5.79903529]
[1733464563663,10.37986657,239.25,239.17,5.79903529]
[1733464563966,2.0889,239.22,239.17,7.88833529]
[1733464565762,2.0886,239.26,239.21,7.88803529]
[1733464565964,2.14,239.28,239.21,10.01026984]
[1733464566264,10.38306337,239.27,239.21,10.01026984]
[1733464566460,7.93903529,239.28,239.21,10.01026984]
[1733464566663,2.0887,239.24,239.21,4.21123455]
[1733464566964,2.14,239.33,239.23,5.79903529]
[1733464567163,2.0884,239.28,239.23,7.88783529]
[1733464567559,2.0884,239.28,239.23,5.79903529]
[1733464569369,2.0884,239.28,239.22,2.0889]
[1733464570263,2.0886,239.27,239.21,9.90634184]
[1733464570668,5.79903529,239.29,239.21,4.10730655]
[1733464570869,10.38226614,239.28,239.2,5.79903529]
[1733464571068,10.38226614,239.27,239.2,10.03637339]
[1733464571266,5.79903529,239.29,239.2,10.03637339]
[1733464571466,10.38042812,239.28,239.2,4.2373381]
[1733464571668,2.0886,239.25,239.2,5.79903529]
[1733464572467,2.0886,239.25,239.2,9.89211824]
[1733464573359,2.14,239.33,239.22,7.88793529]
[1733464573360,5.79903529,239.31,239.22,7.88793529]
[1733464573565,10.37846437,239.3,239.22,5.79903529]
[1733464573765,16.17749966,239.29,239.22,5.79903529]
[1733464573959,10.37846437,239.28,239.22,5.79903529]
[1733464574165,10.37846437,239.27,239.23,4.18967009]
[1733464574365,5.79903529,239.29,239.23,4.18967009]
[1733464574567,2.0886,239.26,239.23,4.18967009]
[1733464576967,2.14,239.31,239.2,2.0891]
[1733464576968,5.79903529,239.27,239.2,5.79903529]
[1733464577172,10.38191885,239.26,239.2,5.79903529]
[1733464577367,10.38191885,239.25,239.2,5.79903529]
[1733464577563,2.0888,239.23,239.2,9.88000224]
[1733464577967,2.0888,239.23,239.2,4.08096695]
[1733464578163,2.0888,239.23,239.18,5.79903529]
[1733464578769,2.0888,239.23,239.18,9.97156373]
[1733464579068,2.14,239.31,239.2,5.79903529]
[1733464579262,10.38591205,239.3,239.22,5.79903529]
[1733464579468,10.38591205,239.29,239.24,5.79903529]
[1733464579665,10.38591205,239.28,239.24,5.79903529]
[1733464579870,10.38591205,239.27,239.24,5.79903529]
[1733464580075,2.14,239.31,239.24,5.79903529]
[1733464580276,10.38773439,239.3,239.24,10.00012697]
[1733464580476,10.38773439,239.29,239.24,10.00012697]
[1733464580676,2.0884,239.28,239.24,10.00012697]
[1733464584576,5.79903529,239.3,239.24,4.20109168]
[1733464584880,2.0885,239.27,239.22,7.88793529]
[1733464585075,2.0885,239.27,239.23,4.17768261]
[1733464585677,5.79903529,239.3,239.23,4.17768261]
[1733464585878,2.0887,239.25,239.21,2.14]
[1733464586380,2.0887,239.25,239.22,4.21279621]
[1733464587283,5.79903529,239.28,239.22,4.21279621]
[1733464587483,10.39092715,239.27,239.22,4.21279621]
[1733464587685,10.39092715,239.26,239.22,4.21279621]
[1733464587878,5.79903529,239.28,239.22,4.21279621]
[1733464588081,10.39117561,239.27,239.22,4.21279621]
[1733464588281,10.39117561,239.26,239.22,4.21279621]
[1733464588585,5.79903529,239.28,239.22,4.21279621]
[1733464588780,10.39092603,239.27,239.22,4.21279621]
[1733464588986,2.0887,239.25,239.22,4.21279621]
[1733464590486,2.0886,239.26,239.22,4.21279621]
[1733464591086,5.79903529,239.28,239.22,4.21279621]
[1733464591283,2.0887,239.25,239.22,4.21279621]
[1733464592078,2.0886,239.26,239.22,4.21279621]
[1733464592585,5.79903529,239.28,239.22,4.21279621]
[1733464592786,10.39093515,239.27,239.22,4.21279621]
[1733464592987,5.79903529,239.28,239.22,4.21279621]
[1733464593185,10.39066915,239.27,239.22,4.21279621]
[1733464593385,5.79903529,239.28,239.22,4.21279621]
[1733464593686,10.39093204,239.27,239.22,4.21279621]
[1733464593986,5.79903529,239.28,239.22,4.21279621]
[1733464594186,10.39116478,239.27,239.22,4.21279621]
[1733464594387,5.79903529,239.28,239.22,4.21279621]
[1733464594587,2.0886,239.26,239.22,4.21279621]
[1733464596286,10.39159261,239.25,239.22,4.21279621]
[1733464596487,2.0886,239.26,239.22,4.21279621]
[1733464596683,10.39153268,239.25,239.22,4.21279621]
[1733464596883,2.0886,239.26,239.22,4.21279621]
[1733464597087,10.39140319,239.25,239.22,4.21279621]
[1733464597287,2.0886,239.26,239.22,4.21279621]
[1733464597589,12.48011472,239.25,239.22,4.21279621]
[1733464597790,2.0887,239.25,239.22,4.21279621]
[1733464599990,2.0887,239.25,239.2,7.88813529]
[1733464600191,2.0887,239.25,239.2,12.13849796]
[1733464600790,2.0887,239.24,239.2,12.13849796]
[1733464601091,2.0887,239.24,239.2,10.04939796]
[1733464601790,2.0887,239.24,239.2,4.25036267]
[1733464602083,2.0887,239.24,239.19,5.79903529]
[1733464602485,2.0887,239.24,239.19,10.05775987]
[1733464603693,2.0887,239.24,239.19,12.14695987]
[1733464603988,2.0887,239.24,239.19,6.34792458]
[1733464604293,2.0887,239.24,239.2,5.79903529]
[1733464604993,2.0887,239.24,239.2,7.88813529]
[1733464605388,2.0892,239.19,239.18,7.0]
[1733464606389,7.88823529,239.19,239.18,7.0]
[1733464606591,7.88823529,239.19,239.18,0.598]
[1733464606788,2.0895,239.16,239.1,4.18117179]
[1733464606991,5.79903529,239.14,239.05,7.88933529]
[1733464607495,5.79903529,239.12,239.05,5.79903529]
[1733464607690,2.08,239.15,239.05,10.0136598]
[1733464607889,10.37167623,239.14,239.05,10.0136598]
[1733464608192,5.79903529,239.14,239.05,10.0136598]
[1733464608788,2.0899,239.11,239.05,10.0136598]
[1733464609293,2.0899,239.11,239.05,12.1040598]
[1733464609891,5.79903529,239.12,239.05,4.21462451]
[1733464611593,2.0901,239.09,239.05,4.21462451]
[1733464612890,2.0901,239.08,239.05,4.21462451]
[1733464613095,5.79903529,239.1,239.05,4.21462451]
[1733464614493,2.0901,239.08,239.05,4.21462451]
[1733464615191,2.0901,239.08,239.02,9.96963529]
[1733464615793,2.0902,239.07,239.02,7.87903529]
[1733464616001,2.08,239.12,239.02,7.87903529]
[1733464616294,2.08,239.12,239.08,5.79903529]
[1733464616492,2.08,239.12,239.08,10.04129751]
[1733464616694,7.87903529,239.16,239.08,10.04129751]
[1733464617400,2.0897,239.13,239.08,4.24226222]
[1733464617700,2.0897,239.13,239.06,5.79903529]
[1733464617902,2.0897,239.13,239.06,7.88933529]
[1733464618100,2.0897,239.13,239.08,5.79903529]
[1733464618691,5.79903529,239.16,239.09,2.09]
[1733464618897,5.79903529,239.16,239.08,9.92331744]
[1733464619598,2.0896,239.15,239.08,12.01341744]
[1733464620997,2.08,239.17,239.08,12.01341744]
[1733464621201,2.0896,239.14,239.08,9.92331744]
[1733464622107,2.0898,239.12,239.08,4.12428215]
[1733464622406,2.0898,239.12,239.06,5.79903529]
[1733464622700,2.0898,239.12,239.06,10.06257867]
[1733464625107,2.0899,239.11,239.06,10.06257867]
[1733464625405,5.79903529,239.13,239.06,10.06257867]
[1733464625907,2.09,239.1,239.06,4.26354338]
[1733464626109,2.09,239.1,239.04,7.88953529]
[1733464626707,2.09,239.1,239.04,11.99573025]
[1733464628705,5.79903529,239.11,239.04,11.99573025]
[1733464628906,2.0901,239.09,239.04,11.99573025]
[1733464629106,5.79903529,239.12,239.04,11.99573025]
[1733464629311,5.79903529,239.12,239.04,6.19669496]
[1733464629507,2.0902,239.07,239.04,4.10619496]
[1733464629706,5.79903529,239.12,239.03,9.20123529]
[1733464630714,2.0901,239.09,239.03,9.20123529]
[1733464631416,2.0901,239.09,239.03,2.0906]
[1733464631724,2.08,239.13,239.02,7.87903529]
[1733464631725,5.79903529,239.1,239.02,7.87903529]
[1733464632510,5.79903529,239.1,239.02,5.79903529]
[1733464632706,5.79903529,239.1,238.89,2.5274]
[1733464632707,2.08,239.13,239.04,5.79903529]
[1733464632911,2.08,239.13,239.04,10.01853275]
[1733464632912,7.87903529,239.13,239.04,10.01853275]
[1733464633108,2.09,239.1,239.06,2.0902]
[1733464633307,2.09,239.1,239.04,10.01853275]
[1733464634716,115.0,239.39,239.06,5.79903529]
[1733464634914,2.0895,239.15,239.08,5.79903529]
[1733464635717,2.0895,239.15,239.1,2.0899]
[1733464635922,2.0895,239.16,239.1,4.27089369]
[1733464636212,2.0895,239.16,239.08,5.79903529]
[1733464637718,2.0895,239.16,239.1,2.09]
[1733464637910,2.0895,239.16,239.1,6.33161521]
[1733464638216,2.0895,239.16,239.1,2.09]
[1733464638612,2.0895,239.16,239.1,6.37093203]
[1733464639020,2.0896,239.15,239.1,4.28093203]
[1733464639209,2.0896,239.15,239.08,7.88913529]
[1733464639414,2.0896,239.15,239.08,5.79903529]
[1733464640819,7.88863529,239.15,239.08,5.79903529]
[1733464641621,7.88863529,239.15,239.09,2.09]
[1733464641822,2.0896,239.14,239.09,2.09]
[1733464642019,5.79903529,239.15,239.09,2.09]
[1733464642723,2.0896,239.14,239.08,3.4229]
[1733464644023,5.79903529,239.15,239.08,3.4229]
[1733464644224,2.0897,239.13,239.08,3.4229]
[1733464644925,2.0898,239.12,239.08,3.4229]
[1733464645618,5.79903529,239.15,239.04,6.29949746]
[1733464645619,5.79903529,239.09,239.04,4.21949746]
[1733464645817,5.79903529,239.09,239.02,1.2547]
[1733464645818,5.79903529,239.07,239.02,1.2547]
[1733464646324,2.0904,239.05,239.02,1.2547]
[1733464646513,5.79903529,239.05,239.01,1.2881]
[1733464646716,5.79903529,239.03,239.0,2000.0]
[1733464647023,5.79903529,239.01,239.0,2000.0]
[1733464653330,2.0907,239.02,239.0,2000.0]
[1733464658730,5.79903529,239.01,239.0,2000.0]
[1733464659033,7.88973529,239.01,239.0,2000.0]
[1733464661339,7.88973529,239.01,239.0,1997.4187]
[1733464662737,7.88973529,239.01,239.0,1871.83964241]
[1733464663535,18.19773625,239.01,239.0,1871.83964241]
[1733464665031,18.19773625,239.01,239.0,1746.23954187]
[1733464665941,20.27773625,239.01,239.0,1746.23954187]
[1733464667643,20.27773625,239.01,239.0,1620.64470273]
[1733464669846,20.27773625,239.01,239.0,1495.04986359]
[1733464671949,20.27773625,239.01,239.0,1369.42344945]
[1733464673540,18.19773625,239.01,239.0,1369.42344945]
[1733464673749,9.96973529,239.01,239.0,1369.42344945]
[1733464674150,7.88973529,239.01,239.0,1369.42344945]
[1733464674344,4.1707,239.01,239.0,1369.42344945]
[1733464674650,9.96973529,239.01,239.0,1369.42344945]
[1733464675944,2.0907,239.01,239.0,1369.42344945]
[1733464676148,9.96973529,239.01,239.0,1369.42344945]
[1733464676745,7.88973529,239.01,239.0,1369.42344945]
[1733464677049,9.96973529,239.01,239.0,1369.42344945]
[1733464684556,20.25108582,239.01,239.0,1369.42344945]
[1733464685154,20.25126487,239.01,239.0,1369.42344945]
[1733464692762,20.25126487,239.01,239.0,1224.96391465]
[1733464693364,7.88973529,239.01,239.0,1224.96391465]
[1733464693555,9.96973529,239.01,239.0,1224.96391465]
[1733464694459,7.88973529,239.01,239.0,1224.96391465]
[1733464694763,9.96973529,239.01,239.0,1224.96391465]
[1733464696064,4.1707,239.01,239.0,1224.96391465]
[1733464696363,9.96973529,239.01,239.0,1224.96391465]
[1733464702967,0.0433,239.01,239.0,1224.96391465]
[1733464703162,7.87903529,239.01,239.0,1224.96391465]
[1733464703771,9.96973529,239.01,239.0,1224.96391465]
[1733464706866,9.96973529,239.01,239.0,1191.05232896]
[1733464707067,9.96973529,239.01,239.0,1172.21138235]
[1733464710875,7.88973529,239.01,239.0,1172.21138235]
[1733464711077,9.96973529,239.01,239.0,1172.21138235]
[1733464712876,2.0912,238.94,238.88,8.3639158]
[1733464713182,5.79903529,238.92,238.85,4.7482]
[1733464713579,7.89043529,238.92,238.85,10.8953812]
[1733464713878,7.89043529,238.92,238.85,2.6562]
[1733464714182,5.79903529,238.92,238.85,2.6562]
[1733464714381,7.89033529,238.92,238.85,10.91882126]
[1733464714581,5.79903529,238.92,238.85,2.6562]
[1733464714975,2.0916,238.9,238.85,2.6562]
[1733464715181,5.79903529,238.92,238.85,11.16075616]
[1733464715476,5.79903529,238.92,238.85,2.6562]
[1733464715982,2.0917,238.89,238.85,10.86928059]
[1733464716282,5.79903529,238.92,238.85,2.6562]
[1733464716672,5.79903529,238.86,238.85,2.6562]
[1733464717774,7.89093529,238.86,238.85,2.6562]
[1733464719877,2.0919,238.86,238.85,2.6562]
[1733464721878,7.89093529,238.86,238.85,2.6562]
[1733464723582,2.0918,238.87,238.85,2.6562]
[1733464723786,2.08,238.91,238.85,2.6562]
[1733464723787,5.79903529,238.88,238.85,2.6562]
[1733464724989,5.79903529,238.86,238.85,2.6562]
[1733464725489,5.79903529,238.88,238.85,2.6562]
[1733464726582,7.89093529,238.86,238.85,2.6562]
[1733464727985,9.97093529,238.86,238.85,2.6562]
[1733464728192,7.87903529,238.86,238.75,0.16994]
[1733464728483,5.79903529,238.82,238.78,1.2362]
[1733464728688,2.08,238.81,238.78,1.2362]
[1733464728883,5.79903529,238.8,238.78,1.2362]
[1733464730088,2.0925,238.79,238.78,1.2362]
[1733464731984,2.08,238.87,238.78,9.65912192]
[1733464732290,7.87903529,238.87,238.79,2.0925]
[1733464732486,5.79903529,238.87,238.79,10.5774106]
[1733464732694,2.092,238.84,238.79,2.0925]
[1733464732887,2.08,238.88,238.8,2.0923]
[1733464733190,0.0303,238.88,238.81,5.79903529]
[1733464733891,0.0303,238.88,238.82,2.0922]
[1733464734092,43.56,238.97,238.81,14.20771656]
[1733464734283,5.79903529,238.91,238.81,14.20771656]
[1733464734482,7.89043529,238.91,238.84,2.092]
[1733464736191,7.89063529,238.89,238.82,2.0922]
[1733464736488,5.79903529,238.89,238.81,8.40868127]
[1733464736688,5.79903529,238.87,238.79,5.79903529]
[1733464737398,2.0919,238.86,238.8,2.0923]
[1733464737592,5.79903529,238.87,238.8,2.0923]
[1733464738092,2.0921,238.84,238.8,8.40956083]
[1733464738290,2.0921,238.84,238.79,2.6133]
[1733464738489,2.0921,238.84,238.79,10.84903595]
[1733464738687,5.79903529,238.87,238.79,10.84903595]
[1733464739491,2.092,238.85,238.8,2.0924]
[1733464740492,5.79903529,238.85,238.79,10.84903595]
[1733464740792,2.0921,238.84,238.79,10.84903595]
[1733464742598,2.0921,238.84,238.79,12.94153595]
[1733464744694,2.0921,238.84,238.8,2.0924]
[1733464745102,2.092,238.86,238.8,2.0924]
[1733464745303,5.79903529,238.87,238.8,2.0924]
[1733464746702,5.79903529,238.81,238.79,2.6133]
[1733464746902,5.79903529,238.81,238.78,1.2362]
[1733464747300,7.89173529,238.79,238.78,1.2362]
[1733464747506,7.89173529,238.79,238.75,2.093]
[1733464747999,2.0927,238.79,238.75,2.093]
[1733464748198,2.08,238.92,238.78,5.79903529]
[1733464748408,5.79903529,238.87,238.78,13.97015649]
[1733464748596,5.79903529,238.85,238.78,13.97015649]
[1733464748799,7.89123529,238.85,238.79,2.0926]
[1733464751698,5.79903529,238.85,238.79,2.0926]
[1733464752007,5.79903529,238.85,238.76,7.87903529]
[1733464752008,5.79903529,238.83,238.76,2.08]
[1733464752208,5.79903529,238.81,238.76,2.08]
[1733464752604,5.79903529,238.81,238.74,5.79903529]
[1733464753807,2.0926,238.8,238.75,2.093]
[1733464754508,5.79903529,238.81,238.75,2.093]
[1733464755717,5.79903529,238.81,238.74,5.79903529]
[1733464756804,5.79903529,238.81,238.73,3.7971]
[1733464758507,5.79903529,238.81,238.73,2.5296]
[1733464758712,5.79903529,238.81,238.73,8.32863529]
[1733464759707,5.79903529,238.79,238.73,2.5296]
[1733464760111,5.79903529,238.79,238.72,10.39605805]
[1733464760313,5.79903529,238.75,238.63,2.5664]
[1733464760611,5.79903529,238.75,238.67,2.08]
[1733464760915,5.79903529,238.75,238.71,8.57741542]
[1733464762207,7.87903529,238.75,238.66,5.79903529]
[1733464762412,7.87903529,238.75,238.71,8.57037519]
[1733464766415,2.08,238.75,238.71,8.57037519]
[1733464767019,2.08,238.76,238.71,8.57037519]
[1733464767315,5.79903529,238.75,238.71,8.57037519]
[1733464768015,5.79903529,238.75,238.68,5.79903529]
[1733464768620,5.79903529,238.75,238.68,14.21305063]
[1733464768821,5.79903529,238.75,238.68,5.79903529]
[1733464769418,5.79903529,238.75,238.68,13.98763781]
[1733464769720,5.79903529,238.75,238.68,5.79903529]
[1733464770125,5.79903529,238.75,238.68,14.0270222]
[1733464770319,5.79903529,238.75,238.68,5.79903529]
[1733464770823,5.79903529,238.75,238.68,14.01410831]
[1733464771122,5.79903529,238.75,238.68,5.79903529]
[1733464771522,5.79903529,238.75,238.68,14.10711863]
[1733464771720,5.79903529,238.75,238.68,5.79903529]
[1733464772024,5.79903529,238.75,238.64,1.2867]
[1733464772220,5.79903529,238.75,238.67,5.79903529]
[1733464772423,5.79903529,238.73,238.68,8.34411436]
[1733464772722,5.79903529,238.73,238.64,1.2867]
[1733464772723,5.79903529,238.73,238.65,5.79903529]
[1733464773024,5.79903529,238.73,238.65,14.12890482]
[1733464773221,5.79903529,238.73,238.65,5.79903529]
[1733464773517,5.79903529,238.73,238.63,2.08]
[1733464773716,5.79903529,238.73,238.64,5.79903529]
[1733464774116,5.79903529,238.73,238.66,5.79903529]
[1733464777626,5.79903529,238.73,238.64,5.79903529]
[1733464779829,2.08,238.74,238.64,5.79903529]
[1733464780026,2.35573529,238.82,238.72,5.79903529]
[1733464780330,5.79903529,238.81,238.72,14.19483529]
[1733464780529,5.79903529,238.81,238.72,5.79903529]
[1733464780733,3.17953529,238.82,238.69,2.08]
[1733464780734,5.79903529,238.77,238.69,2.08]
[1733464780929,5.79903529,238.77,238.69,10.56934026]
[1733464781123,5.79903529,238.77,238.69,2.08]
[1733464781527,5.79903529,238.77,238.69,7.87903529]
[1733464781733,5.79903529,238.77,238.69,16.41781012]
[1733464781935,5.79903529,238.77,238.69,7.87903529]
[1733464782342,5.79903529,238.77,238.69,2.08]
[1733464782538,5.79903529,238.77,238.69,10.2576511]
[1733464782746,7.87903529,238.77,238.69,2.08]
[1733464783140,7.87903529,238.77,238.68,5.79903529]
[1733464783344,5.79903529,238.75,238.68,5.79903529]
[1733464783946,5.79903529,238.75,238.68,14.30631415]
[1733464784248,5.79903529,238.75,238.68,8.50727886]
[1733464784444,5.79903529,238.75,238.67,5.79903529]
[1733464785145,5.79903529,238.75,238.67,14.33731369]
[1733464785347,43.56,238.97,238.72,5.79903529]
[1733464785543,5.79903529,238.82,238.72,5.79903529]
[1733464786047,5.79903529,238.82,238.72,14.20493728]
[1733464786246,5.79903529,238.82,238.72,5.79903529]
[1733464786445,5.79903529,238.8,238.72,5.79903529]
[1733464786746,5.79903529,238.8,238.72,8.1981213]
[1733464786947,5.79903529,238.78,238.7,7.87903529]
[1733464787844,5.79903529,238.78,238.7,2.08]
[1733464791850,2.08,238.79,238.67,5.79903529]
[1733464791851,5.79903529,238.76,238.67,5.79903529]
[1733464792551,5.79903529,238.76,238.67,14.35143587]
[1733464793355,5.79903529,238.78,238.69,5.79903529]
[1733464795056,5.79903529,238.76,238.69,5.79903529]
[1733464795456,5.79903529,238.76,238.67,14.35143587]
[1733464795653,2.08,238.9,238.75,5.79903529]
[1733464795959,5.79903529,238.83,238.75,14.17966727]
[1733464796158,5.79903529,238.83,238.73,2.08]
[1733464796359,5.79903529,238.83,238.74,5.79903529]
[1733464796554,2.08,238.87,238.74,5.79903529]
[1733464796754,5.79903529,238.82,238.74,5.79903529]
[1733464797147,5.79903529,238.82,238.74,14.17239796]
[1733464797354,5.79903529,238.82,238.74,5.79903529]
[1733464797955,5.79903529,238.82,238.74,14.3625874]
[1733464798358,1.3177,238.88,238.74,14.3625874]
[1733464798561,5.79903529,238.85,238.76,5.79903529]
[1733464799857,5.79903529,238.83,238.76,5.79903529]
[1733464801064,5.79903529,238.81,238.74,12.40575211]
[1733464801561,5.79903529,238.81,238.74,11.11475211]
[1733464802363,2.08,238.87,238.77,5.79903529]
[1733464802663,5.79903529,238.86,238.79,5.79903529]
[1733464803164,5.79903529,238.91,238.81,5.79903529]
[1733464803357,5.79903529,238.91,238.83,5.79903529]
[1733464803562,5.79903529,238.91,238.84,1.2484]
[1733464806065,5.79903529,238.9,238.84,1.2484]
[1733464807563,5.79903529,238.86,238.83,8.3087898]
[1733464807767,5.79903529,238.86,238.79,2.08]
[1733464808062,5.79903529,238.86,238.78,5.79903529]
[1733464808266,5.79903529,238.86,238.77,2.08]
[1733464808666,5.79903529,238.84,238.77,2.08]
[1733464809665,5.79903529,238.82,238.77,2.08]
[1733464810164,5.79903529,238.82,238.65,5.64397113]
[1733464810365,5.79903529,238.8,238.72,5.79903529]
[1733464810668,5.79903529,238.76,238.68,3.9322]
[1733464810871,5.79903529,238.78,238.7,5.79903529]
[1733464811573,5.79903529,238.78,238.69,2.08]
[1733464811773,5.79903529,238.78,238.71,5.79903529]
[1733464812070,5.79903529,238.76,238.69,2.08]
[1733464813573,2.7026,238.82,238.71,5.79903529]
[1733464813875,5.79903529,238.8,238.71,5.79903529]
[1733464814370,4.7826,238.82,238.73,5.79903529]
[1733464814568,9.24243529,238.82,238.73,14.33633732]
[1733464814768,9.24243529,238.82,238.73,5.79903529]
[1733464815068,7.16243529,238.82,238.73,5.79903529]
[1733464815264,7.16243529,238.82,238.73,14.0431032]
[1733464817067,7.16243529,238.82,238.73,8.24406791]
[1733464817268,7.16243529,238.82,238.73,5.79903529]
[1733464817464,7.16243529,238.82,238.73,14.27017785]
[1733464817669,7.16243529,238.82,238.73,5.79903529]
[1733464818375,7.16243529,238.82,238.73,14.26096463]
[1733464818671,7.16243529,238.82,238.73,5.79903529]
[1733464819067,7.16243529,238.82,238.73,14.18474612]
[1733464819269,5.79903529,238.78,238.69,7.87903529]
[1733464819772,5.79903529,238.76,238.69,7.87903529]
[1733464821268,5.79903529,238.76,238.67,14.40197188]
[1733464823470,5.79903529,238.74,238.67,8.60293659]
[1733464823671,5.79903529,238.74,238.67,0.24843]
[1733464823976,5.79903529,238.74,238.68,8.57837535]
[1733464824270,5.79903529,238.72,238.67,0.24843]
[1733464824974,5.79903529,238.72,238.68,8.55659006]
[1733464826678,5.79903529,238.72,238.67,0.24843]
[1733464827072,5.79903529,238.72,238.68,8.56171748]
[1733464827373,2.08,238.75,238.68,5.79903529]
[1733464827571,5.79903529,238.76,238.68,14.27025013]
[1733464827772,2.08,238.79,238.68,5.79903529]
[1733464827968,5.79903529,238.79,238.72,5.79903529]
[1733464828173,5.79903529,238.79,238.72,14.2719261]
[1733464828367,5.79903529,238.79,238.72,8.47289081]
[1733464828571,5.79903529,238.79,238.7,5.79903529]
[1733464829075,5.79903529,238.79,238.7,14.28907569]
[1733464831075,1.3545,238.91,238.74,5.79903529]
[1733464831381,1.3545,238.91,238.76,5.79903529]
[1733464831382,5.79903529,238.84,238.76,5.79903529]
[1733464832080,5.79903529,238.84,238.76,14.11320458]